[Event "POL-chT 2nd League Juniors 2020"]
[Site "Sypniewo"]
[Date "2020.10.30"]
[Round "9.10"]
[White "Wojs, Alicja"]
[Black "Kaczmarek, Jan"]
[Result "1-0"]
[ECO "C02"]
[WhiteElo "1392"]
[BlackElo "1229"]
[Annotator "NA RC"]
[PlyCount "43"]
[EventDate "2020.10.23"]
[EventType "team-tourn"]
[EventCountry "POL"]
[SourceTitle "playchess.com"]
[Source "ChessBase"]
[SourceQuality "1"]
[TimeControl "5400+30"]

1. e4 {[%emt 0:00:00]} e6 {[%emt 0:00:00]} 2. d4 {[%emt 0:00:05]} d5 {[%emt 0:00:00]} 3. e5 {[%emt 0:00:11]} c5 {[%emt 0:01:05]} 4. c3 {[%emt 0:00:54]} Nc6 {[%emt 0:00:07]} 5. Nf3 {[%emt 0:00:18]} Bd7 {[%emt 0:00:19]} 6. a3 {[%emt 0:00:18]} f6 {[%emt 0:03:25]} 7. exf6 {[%emt 0:00:27]} Nxf6 {[%emt 0:01:02]} 8. Be3 {[%emt 0:01:48]} c4 {[%emt 0:03:15]} 9. g3 {[%emt 0:00:34]} Bd6 {[%emt 0:09:37]} 10. Bg2 {[%emt 0:03:06]} Qc7 {[%emt 0:02:16]} 11. O-O {[%emt 0:02:27]} O-O-O {[%emt 0:01:05]} 12. Nbd2 {[%emt 0:01:27]} h6 {[%emt 0:07:01]} 13. b3 {[%emt 0:01:32]} cxb3 {[%emt 0:00:55]} 14. Qxb3 {[%emt 0:00:25]} Kb8 {[%emt 0:21:15]} 15. Rab1 {[%emt 0:01:30]} Bc8 {[%emt 0:03:09]} 16. Rfc1 {[%emt 0:00:49]} Qa5 {[%emt 0:07:04]} 17. a4 {[%emt 0:02:01]} Rd7 {[%emt 0:04:44]} 18. c4 {[%emt 0:00:46]} Qa6 {[%emt 0:04:38]} 19. c5 {[%emt 0:03:27]} Bc7 {[%emt 0:02:14]} 20. Bf1 {[%emt 0:00:07]} Qa5 {[%emt 0:00:47]} 21. Bb5 {[%emt 0:01:42]} Ne7 {[%emt 0:01:25]} 22. Nf1 {[%emt 0:01:02]} 1-0

[Event "POL-chT 2nd League Juniors 2020"]
[Site "Sypniewo"]
[Date "2020.10.30"]
[Round "9.10"]
[White "Lapczynski, Jacek"]
[Black "Kacki, Stanislaw"]
[Result "0-1"]
[ECO "D70"]
[WhiteElo "1212"]
[BlackElo "1080"]
[Annotator "NA RC"]
[PlyCount "112"]
[EventDate "2020.10.23"]
[EventType "team-tourn"]
[EventCountry "POL"]
[SourceTitle "playchess.com"]
[Source "ChessBase"]
[SourceQuality "1"]
[TimeControl "5400+30"]

1. d4 {[%emt 0:02:09]} d5 {[%emt 0:00:00]} 2. c4 {[%emt 0:00:30]} c6 {[%emt 0:00:24]} 3. Nf3 {[%emt 0:02:10]} Nf6 {[%emt 0:01:09]} 4. Nbd2 {[%emt 0:02:45]} Bf5 {[%emt 0:04:09]} 5. e3 {[%emt 0:01:27]} e6 {[%emt 0:00:19]} 6. Nh4 {[%emt 0:01:59]} Bg4 {[%emt 0:01:31]} 7. f3 {[%emt 0:00:58]} Bh5 {[%emt 0:00:08]} 8. g3 {[%emt 0:09:37]} Nbd7 {[%emt 0:03:43]} 9. Qb3 {[%emt 0:01:52]} b6 {[%emt 0:07:15]} 10. Ng2 {[%emt 0:03:37]} Bg6 {[%emt 0:01:25]} 11. Nf4 {[%emt 0:04:58]} Bd6 {[%emt 0:01:51]} 12. Nxg6 {[%emt 0:05:25]} hxg6 {[%emt 0:00:08]} 13. Kf2 {[%emt 0:00:33]} Qc7 {[%emt 0:01:12]} 14. f4 {[%emt 0:01:05]} Ng4+ {[%emt 0:03:06]} 15. Kg2 {[%emt 0:02:22]} g5 {[%emt 0:05:07]} 16. Be2 {[%emt 0:03:43]} f5 {[%emt 0:07:02]} 17. Nf3 {[%emt 0:05:32]} gxf4 {[%emt 0:01:06]} 18. exf4 {[%emt 0:03:36]} Ndf6 {[%emt 0:02:14]} 19. Ne5 {[%emt 0:02:54]} O-O-O {[%emt 0:07:18]} 20. Qa4 {[%emt 0:04:31]} Bxe5 {[%emt 0:01:42]} 21. dxe5 {[%emt 0:02:20]} Ne4 {[%emt 0:00:28]} 22. h3 {[%emt 0:01:20]} Nh6 {[%emt 0:04:17]} 23. cxd5 {[%emt 0:03:55]} exd5 {[%emt 0:01:52]} 24. Be3 {[%emt 0:02:34]} c5 {[%emt 0:01:26]} 25. Rac1 {[%emt 0:01:44]} Nf7 {[%emt 0:02:34]} 26. b4 {[%emt 0:02:15]} c4 {[%emt 0:01:50]} 27. Qb5 {[%emt 0:02:43]} Kb7 {[%emt 0:03:23]} 28. Qa4 {[%emt 0:04:30]} Rc8 {[%emt 0:02:48]} 29. b5 {[%emt 0:01:53]} Rhd8 {[%emt 0:04:38]} 30. Bd4 {[%emt 0:02:16]} Nh8 {[%emt 0:03:00]} 31. Qb4 {[%emt 0:01:16]} Ng6 {[%emt 0:00:56]} 32. a4 {[%emt 0:04:39]} Nf8 {[%emt 0:01:17]} 33. Qb2 {[%emt 0:02:42]} Ne6 {[%emt 0:02:08]} 34. Bf3 {[%emt 0:01:57]} N6c5 {[%emt 0:02:58]} 35. Bxe4 {[%emt 0:02:47]} fxe4 {[%emt 0:00:47]} 36. Bxc5 {[%emt 0:01:07]} Qxc5 {[%emt 0:00:25]} 37. e6 {[%emt 0:01:05]} c3 {[%emt 0:00:46]} 38. Qe2 {[%emt 0:00:51]} Qc4 {[%emt 0:01:48]} 39. Qxc4 {[%emt 0:00:57]} Rxc4 {[%emt 0:00:08]} 40. f5 {[%emt 0:00:10]} d4 {[%emt 0:00:34]} 41. h4 {[%emt 0:00:23]} d3 {[%emt 0:00:43]} 42. Rhd1 {[%emt 0:00:49]} Kc7 {[%emt 0:11:28]} 43. e7 {[%emt 0:00:05]} Re8 {[%emt 0:00:43]} 44. Kf2 {[%emt 0:00:15]} Rxe7 {[%emt 0:00:20]} 45. Ke3 {[%emt 0:00:15]} Rd7 {[%emt 0:01:10]} 46. g4 {[%emt 0:00:45]} c2 {[%emt 0:00:38]} 47. Rd2 {[%emt 0:02:53]} Kd6 {[%emt 0:00:53]} 48. Rh2 {[%emt 0:00:38]} Ke5 {[%emt 0:00:39]} 49. Kd2 {[%emt 0:00:30]} Kd4 {[%emt 0:00:38]} 50. Rh3 {[%emt 0:00:15]} Re7 {[%emt 0:00:41]} 51. Re3 {[%emt 0:00:18]} Rb4 {[%emt 0:00:42]} 52. g5 {[%emt 0:00:06]} Rb1 {[%emt 0:00:49]} 53. Rh3 {[%emt 0:00:35]} e3+ {[%emt 0:01:21]} 54. Rxe3 {[%emt 0:00:13]} Rxe3 {[%emt 0:00:09]} 55. Rxb1 {[%emt 0:00:17]} cxb1=Q 56. f6 Re2# 0-1

[Event "POL-chT 2nd League Juniors 2020"]
[Site "Sypniewo"]
[Date "2020.10.30"]
[Round "9.11"]
[White "Niemier, Martyna"]
[Black "Lach, Alicja"]
[Result "1/2-1/2"]
[ECO "A13"]
[WhiteElo "1235"]
[BlackElo "1161"]
[Annotator "NA RC"]
[PlyCount "80"]
[EventDate "2020.10.23"]
[EventType "team-tourn"]
[EventCountry "POL"]
[SourceTitle "playchess.com"]
[Source "ChessBase"]
[SourceQuality "1"]
[TimeControl "5400+30"]

1. c4 {[%emt 0:00:00]} e6 {[%emt 0:00:00]} 2. e3 {[%emt 0:02:41]} d5 {[%emt 0:00:06]} 3. d4 {[%emt 0:00:27]} c5 {[%emt 0:01:56]} 4. Nf3 {[%emt 0:01:03]} Nc6 {[%emt 0:00:19]} 5. cxd5 {[%emt 0:03:03]} exd5 {[%emt 0:00:09]} 6. dxc5 {[%emt 0:02:27]} Bxc5 {[%emt 0:00:09]} 7. Bb5 {[%emt 0:07:04]} a6 {[%emt 0:04:32]} 8. Be2 {[%emt 0:02:43]} Nf6 {[%emt 0:00:17]} 9. O-O {[%emt 0:00:26]} O-O {[%emt 0:00:11]} 10. Nbd2 {[%emt 0:05:46]} Bf5 {[%emt 0:02:23]} 11. Nb3 {[%emt 0:03:32]} Bb6 {[%emt 0:07:00]} 12. Nfd4 {[%emt 0:03:33]} Bg6 {[%emt 0:04:11]} 13. Bf3 {[%emt 0:05:59]} Ne5 {[%emt 0:08:23]} 14. Bd2 {[%emt 0:11:54]} Bc7 {[%emt 0:06:47]} 15. Bc3 {[%emt 0:09:57]} Qd6 {[%emt 0:07:10]} 16. g3 {[%emt 0:03:19]} Nxf3+ {[%emt 0:12:08]} 17. Qxf3 {[%emt 0:01:35]} Bd3 {[%emt 0:04:05]} 18. Rfd1 {[%emt 0:04:54]} Be4 {[%emt 0:00:15]} 19. Qe2 {[%emt 0:03:04]} h5 {[%emt 0:04:35]} 20. Nf3 {[%emt 0:04:12]} Ng4 {[%emt 0:02:40]} 21. Nfd2 {[%emt 0:03:13]} Bf5 {[%emt 0:03:36]} 22. Qf3 {[%emt 0:02:04]} Be6 {[%emt 0:06:03]} 23. Qf4 {[%emt 0:06:13]} Qe7 {[%emt 0:02:27]} 24. Qd4 {[%emt 0:06:40]} Be5 {[%emt 0:06:00]} 25. Qd3 {[%emt 0:01:18]} Bd6 {[%emt 0:02:38]} 26. Nf3 {[%emt 0:03:30]} Rad8 {[%emt 0:03:01]} 27. Nfd4 {[%emt 0:00:41]} h4 {[%emt 0:02:58]} 28. Nf5 {[%emt 0:01:08]} Bxf5 {[%emt 0:02:01]} 29. Qxf5 {[%emt 0:00:02]} Qe4 {[%emt 0:04:50]} 30. Qxe4 {[%emt 0:00:49]} dxe4 {[%emt 0:00:06]} 31. Nd4 {[%emt 0:00:56]} hxg3 {[%emt 0:00:32]} 32. hxg3 {[%emt 0:00:05]} g6 {[%emt 0:00:40]} 33. Nb3 {[%emt 0:00:56]} Nh6 {[%emt 0:01:12]} 34. Bd4 {[%emt 0:00:15]} Nf5 {[%emt 0:00:25]} 35. Bc5 {[%emt 0:00:22]} Bxc5 {[%emt 0:00:51]} 36. Nxc5 {[%emt 0:00:03]} Nd6 {[%emt 0:00:12]} 37. Rd4 {[%emt 0:00:39]} f5 {[%emt 0:00:52]} 38. Rad1 {[%emt 0:00:13]} Nf7 {[%emt 0:00:33]} 39. Rd7 {[%emt 0:01:41]} Rb8 {[%emt 0:01:25]} 40. Nxb7 {[%emt 0:00:48]} Ne5 {[%emt 0:00:07]} 1/2-1/2

[Event "POL-chT 2nd League Juniors 2020"]
[Site "Sypniewo"]
[Date "2020.10.30"]
[Round "9.11"]
[White "Zybrant, Sandra"]
[Black "Czarnecka, Lidia"]
[Result "0-1"]
[ECO "A03"]
[WhiteElo "1084"]
[BlackElo "1861"]
[Annotator "NA RC"]
[PlyCount "96"]
[EventDate "2020.10.23"]
[EventType "team-tourn"]
[EventCountry "POL"]
[SourceTitle "playchess.com"]
[Source "ChessBase"]
[SourceQuality "1"]
[TimeControl "5400+30"]

1. f4 d5 2. e3 g6 3. d4 Bg7 4. Nf3 c5 5. Bb5+ Bd7 6. Bxd7+ Nxd7 7. O-O Ngf6 8. c4 dxc4 9. Qa4 O-O 10. Qxc4 Rc8 11. Qe2 Qb6 12. Nc3 Rfd8 13. Rd1 cxd4 14. exd4 e6 15. h3 Nb8 16. Be3 Nd5 17. Nxd5 Rxd5 18. Rd2 Rcd8 19. Rad1 Nc6 20. Qf2 Qa6 21. a3 Na5 22. Rd3 Nc4 23. Bc1 Nd6 24. Qe2 Nf5 25. Qf2 Qc4 26. Be3 Nd6 27. Kh2 a5 28. g4 Qa6 29. Ne5 Ne8 30. R3d2 Nf6 31. Qf3 Qd6 32. Nc4 Qe7 33. Nb6 Rb5 34. Nc4 Nd5 35. g5 Rc8 36. Ne5 Rb3 37. Re1 Qd6 38. Qf2 Qa6 39. Rde2 Qb5 40. Bc1 Qa4 41. Rd2 Bf8 42. Nd3 Bd6 43. Rdd1 Rxd3 44. Rxd3 Rxc1 45. Rxc1 Bxf4+ 46. Kg1 Bxc1 47. Rf3 Qd7 48. Qe1 Bxg5 0-1

[Event "POL-chT 2nd League Juniors 2020"]
[Site "Sypniewo"]
[Date "2020.10.30"]
[Round "9.15"]
[White "Jendrowiak, Maciej"]
[Black "Karut, Kacper"]
[Result "1/2-1/2"]
[ECO "E06"]
[WhiteElo "1382"]
[BlackElo "1657"]
[Annotator "NA RC"]
[PlyCount "69"]
[EventDate "2020.10.23"]
[EventType "team-tourn"]
[EventCountry "POL"]
[SourceTitle "playchess.com"]
[Source "ChessBase"]
[SourceQuality "1"]
[TimeControl "5400+30"]

1. d4 {[%emt 0:00:00]} d5 {[%emt 0:00:00]} 2. Nf3 {[%emt 0:00:00]} e6 {[%emt 0:00:21]} 3. c4 {[%emt 0:00:30]} Nf6 {[%emt 0:00:07]} 4. g3 {[%emt 0:00:33]} Be7 {[%emt 0:11:24]} 5. Bg2 {[%emt 0:02:17]} O-O {[%emt 0:01:10]} 6. b3 {[%emt 0:02:30]} c5 {[%emt 0:05:43]} 7. cxd5 {[%emt 0:05:21]} Nxd5 {[%emt 0:02:49]} 8. O-O {[%emt 0:01:02]} Nc6 {[%emt 0:03:24]} 9. Bb2 {[%emt 0:01:41]} Qc7 {[%emt 0:12:01]} 10. Na3 {[%emt 0:08:11]} cxd4 {[%emt 0:16:19]} 11. Nxd4 {[%emt 0:12:02]} Rd8 {[%emt 0:06:54]} 12. Nxc6 {[%emt 0:12:01]} bxc6 {[%emt 0:03:16]} 13. Qc2 {[%emt 0:00:35]} Ba6 {[%emt 0:02:22]} 14. Nc4 {[%emt 0:00:31]} Rac8 {[%emt 0:06:56]} 15. a3 {[%emt 0:03:13]} Bxc4 {[%emt 0:05:42]} 16. Qxc4 {[%emt 0:00:41]} Qb6 {[%emt 0:00:58]} 17. Rac1 {[%emt 0:02:47]} Qb5 {[%emt 0:06:08]} 18. Rfd1 {[%emt 0:01:36]} Qxc4 {[%emt 0:00:31]} 19. Rxc4 {[%emt 0:00:14]} c5 {[%emt 0:00:30]} 20. Ra4 {[%emt 0:05:39]} Rc7 {[%emt 0:02:47]} 21. Ra5 {[%emt 0:03:48]} f6 {[%emt 0:04:36]} 22. Ra4 {[%emt 0:08:47]} Kf7 {[%emt 0:00:52]} 23. Ra6 {[%emt 0:08:53]} Rb8 {[%emt 0:03:59]} 24. b4 {[%emt 0:07:38]} cxb4 {[%emt 0:00:34]} 25. Bxd5 {[%emt 0:00:07]} exd5 {[%emt 0:00:25]} 26. axb4 {[%emt 0:02:54]} Rxb4 {[%emt 0:01:15]} 27. Bd4 {[%emt 0:00:35]} Bc5 {[%emt 0:01:54]} 28. Bxc5 {[%emt 0:00:12]} Rxc5 {[%emt 0:00:05]} 29. Rxa7+ {[%emt 0:00:05]} Kg6 {[%emt 0:00:04]} 30. Rd7 {[%emt 0:00:10]} Rb2 {[%emt 0:00:25]} 31. R7xd5 {[%emt 0:00:59]} Rxd5 {[%emt 0:00:07]} 32. Rxd5 {[%emt 0:00:12]} Rxe2 {[%emt 0:00:01]} 33. Kg2 {[%emt 0:00:33]} Ra2 {[%emt 0:00:09]} 34. h4 {[%emt 0:00:17]} f5 {[%emt 0:00:55]} 35. Rd6+ {[%emt 0:02:41]} 1/2-1/2

[Event "POL-chT 2nd League Juniors 2020"]
[Site "Sypniewo"]
[Date "2020.10.30"]
[Round "9.16"]
[White "Pycinski, Wladyslaw"]
[Black "Rzepka, Marcin"]
[Result "1-0"]
[ECO "A80"]
[WhiteElo "1149"]
[BlackElo "1294"]
[Annotator "NA RC"]
[PlyCount "75"]
[EventDate "2020.10.23"]
[EventType "team-tourn"]
[EventCountry "POL"]
[SourceTitle "playchess.com"]
[Source "ChessBase"]
[SourceQuality "1"]
[TimeControl "5400+30"]

1. d4 {[%emt 0:00:04]} f5 {[%emt 0:00:03]} 2. Nf3 {[%emt 0:00:48]} d6 {[%emt 0:00:50]} 3. g3 {[%emt 0:00:54]} Nf6 {[%emt 0:01:00]} 4. Bg2 {[%emt 0:00:28]} g6 {[%emt 0:00:58]} 5. b3 {[%emt 0:01:00]} Bg7 {[%emt 0:00:46]} 6. Bb2 {[%emt 0:00:08]} O-O {[%emt 0:01:39]} 7. O-O {[%emt 0:00:29]} e6 {[%emt 0:03:49]} 8. c4 {[%emt 0:03:04]} h6 {[%emt 0:09:34]} 9. Qc2 {[%emt 0:09:09]} Re8 {[%emt 0:08:26]} 10. Nbd2 Nbd7 {[%emt 0:10:42]} 11. e4 {[%emt 0:05:33]} Nf8 {[%emt 0:02:04]} 12. e5 {[%emt 0:17:45]} N6d7 {[%emt 0:02:26]} 13. Rad1 {[%emt 0:07:06]} g5 {[%emt 0:07:09]} 14. exd6 {[%emt 0:12:54]} cxd6 {[%emt 0:00:28]} 15. d5 {[%emt 0:04:35]} Bxb2 {[%emt 0:15:44]} 16. dxe6 {[%emt 0:02:08]} Nxe6 {[%emt 0:01:53]} 17. Qxb2 {[%emt 0:01:23]} Qf6 {[%emt 0:00:15]} 18. Qxf6 {[%emt 0:00:43]} Nxf6 {[%emt 0:00:04]} 19. Nb1 {[%emt 0:00:46]} Rd8 {[%emt 0:02:13]} 20. Nc3 {[%emt 0:00:50]} Nc7 {[%emt 0:05:37]} 21. Nd4 {[%emt 0:03:26]} a6 {[%emt 0:19:13]} 22. Nc2 {[%emt 0:03:01]} Rb8 {[%emt 0:01:05]} 23. Nb4 {[%emt 0:00:27]} Be6 {[%emt 0:02:19]} 24. Rd2 {[%emt 0:02:17]} a5 {[%emt 0:02:02]} 25. Nbd5 {[%emt 0:00:10]} Ncxd5 {[%emt 0:00:29]} 26. Nxd5 {[%emt 0:00:05]} Nxd5 {[%emt 0:00:47]} 27. Bxd5 {[%emt 0:00:06]} Kf7 {[%emt 0:00:50]} 28. Rfd1 {[%emt 0:00:28]} b6 {[%emt 0:00:45]} 29. Bc6 {[%emt 0:00:23]} Ke7 {[%emt 0:00:08]} 30. Re2 {[%emt 0:00:15]} Kf6 {[%emt 0:01:02]} 31. a3 {[%emt 0:01:06]} Rbc8 {[%emt 0:00:25]} 32. Bb5 {[%emt 0:00:07]} Rc5 {[%emt 0:00:39]} 33. f4 {[%emt 0:00:59]} Rg8 {[%emt 0:00:31]} 34. Rxd6 {[%emt 0:00:25]} Kf7 {[%emt 0:00:32]} 35. Rexe6 {[%emt 0:00:20]} gxf4 {[%emt 0:00:28]} 36. Rxh6 {[%emt 0:00:45]} Ke7 {[%emt 0:00:30]} 37. Rd7+ {[%emt 0:00:07]} Kf8 {[%emt 0:00:13]} 38. Rf6+ {[%emt 0:00:06]} 1-0

[Event "POL-chT 2nd League Juniors 2020"]
[Site "Sypniewo"]
[Date "2020.10.30"]
[Round "9.17"]
[White "Seemann, Pola"]
[Black "Kudlak, Julia"]
[Result "0-1"]
[ECO "B93"]
[WhiteElo "1566"]
[BlackElo "1574"]
[Annotator "NA RC"]
[PlyCount "106"]
[EventDate "2020.10.23"]
[EventType "team-tourn"]
[EventCountry "POL"]
[SourceTitle "playchess.com"]
[Source "ChessBase"]
[SourceQuality "1"]
[TimeControl "5400+30"]

1. e4 {[%emt 0:00:00]} c5 {[%emt 0:00:05]} 2. Nf3 {[%emt 0:00:00]} d6 {[%emt 0:00:40]} 3. d4 {[%emt 0:00:00]} cxd4 {[%emt 0:00:06]} 4. Nxd4 {[%emt 0:00:00]} Nf6 {[%emt 0:00:58]} 5. Nc3 {[%emt 0:00:00]} a6 {[%emt 0:01:30]} 6. f4 {[%emt 0:00:00]} e5 {[%emt 0:10:54]} 7. Nf3 {[%emt 0:00:07]} Nbd7 {[%emt 0:09:17]} 8. Bd3 {[%emt 0:04:59]} Be7 {[%emt 0:05:45]} 9. O-O {[%emt 0:02:36]} b5 {[%emt 0:03:21]} 10. a3 {[%emt 0:06:18]} O-O 11. Qe1 {[%emt 0:06:06]} Bb7 {[%emt 0:06:30]} 12. Qg3 {[%emt 0:06:08]} exf4 {[%emt 0:04:50]} 13. Qxf4 {[%emt 0:04:59]} Ne5 {[%emt 0:10:38]} 14. Nxe5 {[%emt 0:03:11]} dxe5 {[%emt 0:01:50]} 15. Qxe5 {[%emt 0:09:30]} Ng4 {[%emt 0:06:21]} 16. Qg3 {[%emt 0:02:27]} Qb6+ {[%emt 0:05:21]} 17. Kh1 {[%emt 0:02:18]} h5 {[%emt 0:03:40]} 18. Bf4 {[%emt 0:05:32]} g5 {[%emt 0:02:49]} 19. Bc7 {[%emt 0:07:47]} Qc5 {[%emt 0:00:34]} 20. Rf5 {[%emt 0:00:46]} Qe3 {[%emt 0:00:50]} 21. Rf3 {[%emt 0:01:15]} Qd4 {[%emt 0:03:15]} 22. h3 {[%emt 0:00:32]} Qh8 {[%emt 0:03:08]} 23. Bb6 {[%emt 0:05:54]} Bf6 {[%emt 0:03:06]} 24. Rf5 {[%emt 0:06:09]} Bc8 {[%emt 0:01:23]} 25. hxg4 {[%emt 0:01:49]} hxg4+ {[%emt 0:00:35]} 26. Kg1 {[%emt 0:00:13]} Bxf5 {[%emt 0:01:18]} 27. exf5 {[%emt 0:00:18]} Bd4+ {[%emt 0:01:35]} 28. Bxd4 {[%emt 0:00:34]} Qxd4+ {[%emt 0:00:41]} 29. Qf2 {[%emt 0:00:47]} Qxf2+ {[%emt 0:02:44]} 30. Kxf2 {[%emt 0:00:07]} f6 {[%emt 0:00:29]} 31. Kg3 {[%emt 0:00:10]} Rae8 {[%emt 0:01:09]} 32. Ne4 {[%emt 0:00:51]} Kg7 {[%emt 0:01:15]} 33. Rh1 {[%emt 0:01:26]} Re5 {[%emt 0:01:19]} 34. Kxg4 {[%emt 0:00:50]} Rfe8 {[%emt 0:00:55]} 35. Re1 {[%emt 0:01:59]} Rh8 {[%emt 0:00:28]} 36. Re2 {[%emt 0:01:48]} Rh4+ {[%emt 0:00:58]} 37. Kg3 {[%emt 0:00:15]} Rf4 {[%emt 0:01:32]} 38. Nd6 {[%emt 0:04:22]} Rd4 {[%emt 0:02:11]} 39. Ne8+ {[%emt 0:01:47]} Kf7 {[%emt 0:00:32]} 40. Nc7 {[%emt 0:02:19]} Rxd3+ {[%emt 0:00:21]} 41. cxd3 {[%emt 0:00:23]} Rxe2 {[%emt 0:00:07]} 42. Nxa6 {[%emt 0:00:56]} Rxb2 {[%emt 0:01:20]} 43. Nc7 {[%emt 0:00:52]} Rb3 {[%emt 0:00:56]} 44. Kg4 {[%emt 0:00:25]} Rxa3 {[%emt 0:00:38]} 45. Nxb5 {[%emt 0:00:23]} Rxd3 {[%emt 0:00:12]} 46. Nc7 {[%emt 0:01:09]} Rd4+ {[%emt 0:01:20]} 47. Kf3 {[%emt 0:00:19]} Rf4+ {[%emt 0:00:14]} 48. Kg3 {[%emt 0:01:19]} Rxf5 {[%emt 0:00:06]} 49. Na6 {[%emt 0:00:38]} Rb5 {[%emt 0:00:38]} 50. Kf3 {[%emt 0:01:00]} Ke7 {[%emt 0:00:28]} 51. Ke4 {[%emt 0:00:24]} Kd6 {[%emt 0:00:23]} 52. Kd4 {[%emt 0:00:29]} Rb6 {[%emt 0:01:27]} 53. Nc5 {[%emt 0:00:20]} Rb4+ {[%emt 0:00:13]} 0-1

[Event "POL-chT 2nd League Juniors 2020"]
[Site "Sypniewo"]
[Date "2020.10.30"]
[Round "9.18"]
[White "Tim, Anna"]
[Black "Gaszka, Zuzanna"]
[Result "0-1"]
[ECO "E90"]
[WhiteElo "1237"]
[BlackElo "1417"]
[Annotator "NA RC"]
[PlyCount "80"]
[EventDate "2020.10.23"]
[EventType "team-tourn"]
[EventCountry "POL"]
[SourceTitle "playchess.com"]
[Source "ChessBase"]
[SourceQuality "1"]
[TimeControl "5400+30"]

1. d4 {[%emt 0:00:00]} Nf6 {[%emt 0:00:00]} 2. c4 {[%emt 0:00:00]} g6 {[%emt 0:00:00]} 3. Nc3 {[%emt 0:00:07]} Bg7 {[%emt 0:00:00]} 4. e4 {[%emt 0:00:55]} d6 {[%emt 0:00:04]} 5. Nf3 {[%emt 0:01:01]} O-O {[%emt 0:00:41]} 6. Bd3 {[%emt 0:00:57]} Nbd7 {[%emt 0:00:55]} 7. O-O {[%emt 0:00:48]} e5 {[%emt 0:03:17]} 8. d5 {[%emt 0:00:28]} h6 {[%emt 0:02:35]} 9. h3 Ne8 {[%emt 0:04:51]} 10. Qc2 {[%emt 0:06:34]} a5 {[%emt 0:03:39]} 11. b3 {[%emt 0:03:06]} Nc5 {[%emt 0:01:43]} 12. Ba3 {[%emt 0:07:48]} f5 {[%emt 0:06:09]} 13. Bxc5 {[%emt 0:03:36]} dxc5 14. Rfe1 {[%emt 0:01:55]} f4 {[%emt 0:02:23]} 15. Rad1 {[%emt 0:09:15]} g5 {[%emt 0:02:59]} 16. Be2 {[%emt 0:14:39]} h5 {[%emt 0:03:07]} 17. Nh2 {[%emt 0:03:22]} Nf6 {[%emt 0:04:51]} 18. f3 {[%emt 0:06:40]} Rf7 {[%emt 0:05:23]} 19. Qb2 {[%emt 0:09:54]} Ra6 {[%emt 0:05:41]} 20. Nb5 {[%emt 0:02:35]} Qe7 {[%emt 0:02:36]} 21. Rb1 {[%emt 0:04:22]} Bf8 {[%emt 0:04:18]} 22. Red1 {[%emt 0:04:28]} Rg7 {[%emt 0:02:02]} 23. Kf1 {[%emt 0:01:44]} g4 {[%emt 0:01:59]} 24. hxg4 {[%emt 0:00:38]} hxg4 {[%emt 0:00:13]} 25. fxg4 {[%emt 0:00:19]} Nxe4 {[%emt 0:03:36]} 26. Nf3 {[%emt 0:03:46]} Ng3+ {[%emt 0:01:13]} 27. Ke1 {[%emt 0:01:17]} Bxg4 {[%emt 0:02:07]} 28. Ng1 {[%emt 0:04:27]} Rh6 {[%emt 0:06:52]} 29. Bxg4 {[%emt 0:00:57]} Rxg4 {[%emt 0:00:14]} 30. Kd2 {[%emt 0:03:07]} Ne4+ {[%emt 0:03:22]} 31. Kd3 {[%emt 0:01:24]} Qh7 {[%emt 0:02:58]} 32. Re1 {[%emt 0:03:08]} Rg3+ {[%emt 0:00:57]} 33. Nf3 {[%emt 0:00:24]} Ng5+ {[%emt 0:00:56]} 34. Kd2 {[%emt 0:00:57]} Rxg2+ {[%emt 0:00:55]} 35. Re2 {[%emt 0:00:39]} Nxf3+ {[%emt 0:00:21]} 36. Kc3 {[%emt 0:00:41]} Rxe2 {[%emt 0:01:03]} 37. Qxe2 {[%emt 0:00:09]} Qxb1 {[%emt 0:01:42]} 38. Qxf3 {[%emt 0:01:01]} Qc1+ {[%emt 0:00:44]} 39. Kd3 {[%emt 0:00:25]} Rg6 {[%emt 0:00:34]} 40. Qf2 {[%emt 0:01:04]} Qb1+ {[%emt 0:00:21]} 0-1

[Event "POL-chT 2nd League Juniors 2020"]
[Site "Sypniewo"]
[Date "2020.10.30"]
[Round "9.20"]
[White "Dalkowski, Rafal"]
[Black "Kukula, Karol"]
[Result "0-1"]
[ECO "E16"]
[WhiteElo "1871"]
[BlackElo "1739"]
[Annotator "NA RC"]
[PlyCount "58"]
[EventDate "2020.10.23"]
[EventType "team-tourn"]
[EventCountry "POL"]
[SourceTitle "playchess.com"]
[Source "ChessBase"]
[SourceQuality "1"]
[TimeControl "5400+30"]

{[%evp 8,53,31,0,8,4,14,9,17,-14,-14,-20,-4,-44,-54,-63,-59,-108,-88,-106,-106,-161,-170,-157,-129,-135,-27,-42,-44,-83,-78,-70,-75,-79,-73,-129,-91,-99,-106,-117,-93,-152,-150,-905,-849,-1796,-1755,-1507]} 1. d4 {[%emt 0:00:00]} Nf6 {[%emt 0:00:00]} 2. c4 {[%emt 0:00:00]} e6 {[%emt 0:00:00]} 3. Nf3 {[%emt 0:00:00]} Bb4+ {[%emt 0:00:00]} 4. Bd2 {[%emt 0:00:00]} Qe7 {[%emt 0:00:05]} 5. Qc2 {[%emt 0:00:13]} Bxd2+ {[%emt 0:08:16]} 6. Nbxd2 {[%emt 0:00:13]} d6 {[%emt 0:00:06]} 7. e4 {[%emt 0:00:55]} e5 {[%emt 0:04:20]} 8. d5 {[%emt 0:00:27]} O-O {[%emt 0:01:49] E11: Bogo-Indian.} 9. Bd3 {[%emt 0:00:26]} Nbd7 {[%emt 0:08:34] [#]} 10. h3 $146 {[%emt 0:05:03]} ({Predecessor:} 10. O-O Nc5 11. Ne1 Nxd3 12. Nxd3 Nh5 13. f4 Nxf4 14. Nxf4 exf4 15. Rxf4 Qe5 16. Rf2 f5 17. Raf1 g6 18. c5 Bd7 19. cxd6 cxd6 20. Qb3 fxe4 21. Qxb7 {½-½ (21) Ivanenko,O-Kovaliova,V Kiev 2004}) 10... Nh5 {[%emt 0:15:32]} 11. g3 {[%emt 0:20:20]} Nc5 {[%emt 0:23:14]} 12. Nh4 {[%emt 0:06:45] [#]} (12. b4 $15 Nxd3+ 13. Qxd3) 12... f5 $1 {[%emt 0:11:15]} 13. O-O-O {[%emt 0:12:44]} f4 {[%emt 0:08:43]} 14. Rdg1 {[%emt 0:03:25]} fxg3 {[%emt 0:06:03]} 15. fxg3 {[%emt 0:00:25] [#]} Nxg3 $1 {[%emt 0:01:59]} 16. Ng6 {[%emt 0:01:33] [#]} hxg6 {[%emt 0:00:29]} ({Black should try} 16... Qg5 $1 $17 17. Nxf8 Qe3 18. Rxg3 Qxg3) 17. Rxg3 {[%emt 0:00:05]} Rf6 {[%emt 0:00:15]} 18. Nf3 {[%emt 0:05:58]} (18. Be2 $11) 18... Nxd3+ 19. Qxd3 {[%emt 0:00:07]} Bd7 {[%emt 0:01:27]} 20. Ng5 {[%emt 0:05:16]} Raf8 {[%emt 0:01:03]} 21. Rg2 {[%emt 0:04:36]} Rf2 {[%emt 0:06:01]} 22. Qg3 {[%emt 0:04:22]} Rxg2 {[%emt 0:00:39]} 23. Qxg2 {[%emt 0:00:05]} Qf6 {[%emt 0:00:06]} 24. Rg1 {[%emt 0:01:09]} ({White should play} 24. Qg3) 24... Qf4+ {[%emt 0:00:36]} 25. Kc2 $2 {[%emt 0:01:41]} (25. Qd2) 25... Qe3 {[%emt 0:00:23]} 26. Qg3 {[%emt 0:02:44]} Rf2+ {[%emt 0:00:43]} 27. Kb1 {[%emt 0:00:11] [#]} Rf1+ $1 {[%emt 0:00:18]} 28. Kc2 {[%emt 0:00:36]} Qxg1 {[%emt 0:00:08]} 29. Qh4 {[%emt 0:00:09]} Qf2+ {[%emt 0:00:03]} 0-1